fUST/lending_fUST_20251115
["ID","MTS","AMOUNT","RATE_DAILY","PERIOD"]
[393987687,1763163043510,-500.0,0.00054794,120]
[393987688,1763163043521,-500.0,0.00054794,120]
[393987689,1763163043533,-593.25877437,0.00054794,120]
[393987690,1763163043544,-500.0,0.00054794,120]
[393987691,1763163043556,-500.0,0.00054794,120]
[393987692,1763163043571,-500.0,0.00054794,120]
[393987693,1763163043581,-500.0,0.00054794,120]
[393987694,1763163043590,-500.0,0.00054794,120]
[393987695,1763163043599,-500.0,0.00054794,120]
[393987696,1763163043608,-500.0,0.00054794,120]
[393987697,1763163043618,-500.0,0.00054794,120]
[393987698,1763163043628,-500.0,0.00054794,120]
[393987699,1763163043637,-500.0,0.00054794,120]
[393987700,1763163043647,-500.0,0.00054794,120]
[393987701,1763163043656,-500.0,0.00054794,120]
[393987702,1763163043666,-500.0,0.00054794,120]
[393987703,1763163043675,-500.0,0.00054794,120]
[393987704,1763163043685,-500.0,0.00054794,120]
[393987705,1763163043694,-500.0,0.00054794,120]
[393987706,1763163043704,-500.0,0.00054794,120]
[393987707,1763163043713,-500.0,0.00054794,120]
[393987708,1763163043723,-500.0,0.00054794,120]
[393987709,1763163043732,-500.0,0.00054794,30]
[393987710,1763163043741,-500.0,0.00054794,120]
[393987711,1763163043751,-500.0,0.00054794,120]
[393987712,1763163044013,-500.0,0.00054794,120]
[393987713,1763163044031,-500.0,0.00054794,120]
[393987714,1763163044049,-500.0,0.00054794,120]
[393987715,1763163044058,-500.0,0.00054794,120]
[393987716,1763163044068,-519.70740578,0.00054794,120]
[393987717,1763163044078,-500.0,0.00054794,120]
[393987718,1763163044087,-500.0,0.00054794,120]
[393987719,1763163044096,-500.0,0.00054794,120]
[393987720,1763163044106,-500.0,0.00054794,120]
[393987721,1763163044115,-500.0,0.00054794,120]
[393987722,1763163044124,-1202.43,0.00054794,120]
[393987723,1763163044145,-500.0,0.00054794,120]
[393987724,1763163044165,-500.0,0.00054794,120]
[393987725,1763163044174,-500.0,0.00054794,120]
[393987726,1763163044186,-500.0,0.00054794,120]
[393987727,1763163044196,-500.0,0.00054794,120]
[393987728,1763163044206,-500.0,0.00054794,120]
[393987729,1763163044217,-500.0,0.00054794,120]
[393987730,1763163044228,-500.0,0.00054794,120]
[393987731,1763163044239,-500.0,0.00054794,120]
[393987732,1763163044252,-500.0,0.00054794,120]
[393987733,1763163044262,-500.0,0.00054794,120]
[393987734,1763163044272,-500.0,0.00054794,120]
[393987735,1763163044281,-500.0,0.00054794,120]
[393987736,1763163044291,-500.0,0.00054794,120]
[393987737,1763163044300,-500.0,0.00054794,120]
[393987738,1763163044309,-500.44899898,0.00054794,120]
[393987739,1763163044323,-500.0,0.00054794,120]
[393987740,1763163044334,-500.0,0.00054794,120]
[393987741,1763163044344,-500.0,0.00054794,120]
[393987742,1763163044354,-500.0,0.00054794,120]
[393987743,1763163044364,-500.0,0.00054794,120]
[393987744,1763163044374,-565.27,0.00054794,120]
[393987745,1763163044384,-500.0,0.00054794,120]
[393987746,1763163044394,-500.0,0.00054794,120]
[393987747,1763163044404,-500.0,0.00054794,20]
[393987748,1763163044413,-500.0,0.00054794,120]
[393987749,1763163044422,-500.0,0.00054794,120]
[393987750,1763163044432,-500.0,0.00054794,120]
[393987751,1763163044442,-500.0,0.00054794,120]
[393987752,1763163044451,-500.0,0.00054794,120]
[393987753,1763163044461,-500.0,0.00054794,120]
[393987754,1763163044471,-500.0,0.00054794,120]
[393987755,1763163044481,-500.0,0.00054794,120]
[393987756,1763163044491,-500.0,0.00054794,120]
[393987757,1763163044501,-500.0,0.00054794,120]
[393987758,1763163044511,-500.0,0.00054794,120]
[393987759,1763163044521,-500.0,0.00054794,120]
[393987760,1763163044531,-758.94,0.00054794,120]
[393987761,1763163044541,-500.0,0.00054794,120]
[393987762,1763163044550,-1273.12,0.00054794,120]
[393987763,1763163044559,-500.0,0.00054794,120]
[393987764,1763163044573,-500.0,0.00054794,120]
[393987765,1763163044582,-513.13,0.00054794,120]
[393987766,1763163044591,-500.0,0.00054794,120]
[393987767,1763163044601,-500.0,0.00054794,120]
[393987768,1763163044611,-500.0,0.00054794,120]
[393987769,1763163044620,-500.0,0.00054794,120]
[393987770,1763163044630,-500.0,0.00054794,120]
[393987771,1763163044640,-500.0,0.00054794,120]
[393987772,1763163044649,-500.0,0.00054794,120]
[393987773,1763163044659,-531.06,0.00054794,120]
[393987774,1763163044668,-500.0,0.00054794,120]
[393987775,1763163044678,-500.0,0.00054794,120]
[393987776,1763163044688,-500.0,0.00054794,10]
[393987777,1763163044698,-500.0,0.00054794,120]
[393987778,1763163044707,-1787.18,0.00054794,120]
[393987779,1763163044716,-500.0,0.00054794,120]
[393987780,1763163044727,-500.0,0.00054794,120]
[393987781,1763163044736,-500.0,0.00054794,120]
[393987782,1763163044745,-500.0,0.00054794,120]
[393987783,1763163044756,-500.0,0.00054794,120]
[393987784,1763163044765,-500.0,0.00054794,120]
[393987785,1763163044775,-500.0,0.00054794,120]
[393987786,1763163044784,-935.57,0.00054794,120]
[393987787,1763163044794,-500.0,0.00054794,120]
[393987788,1763163044804,-442.41064335,0.00054794,120]
[393987789,1763163044813,-500.0,0.00054794,120]
[393987790,1763163044824,-2707.64,0.00054794,120]
[393987791,1763163044834,-687.17,0.00054794,120]
[393987792,1763163044843,-500.0,0.00054794,120]
[393987793,1763163044853,-500.0,0.00054794,120]
[393987794,1763163044862,-212.2,0.00054794,120]
[393987795,1763163044872,-500.0,0.00054794,120]
[393987796,1763163044881,-1015.02,0.00054794,120]
[393987797,1763163044890,-977.1,0.00054794,120]
[393987798,1763163044900,-500.0,0.00054794,120]
[393987799,1763163044909,-500.0,0.00054794,120]
[393987800,1763163044917,-500.0,0.00054794,120]
[393987801,1763163044926,-500.0,0.00054794,120]
[393987802,1763163044936,-735.73,0.00054794,120]
[393987803,1763163044945,-500.0,0.00054794,120]
[393987804,1763163044955,-500.0,0.00054794,120]
[393987805,1763163044964,-500.0,0.00054794,120]
[393987806,1763163044972,-500.0,0.00054794,120]
[393987807,1763163044981,-500.0,0.00054794,120]
[393987808,1763163044990,-500.0,0.00054794,120]
[393987809,1763163044999,-250.0,0.00054794,120]
[393987810,1763163045008,-250.0,0.00054794,120]
[393987811,1763163045018,-500.0,0.00054794,120]
[393987812,1763163045027,-500.0,0.00054794,120]
[393987813,1763163045037,-500.0,0.00054794,120]
[393987814,1763163045046,-250.0,0.00054794,120]
[393987815,1763163045055,-250.0,0.00054794,120]
[393987816,1763163045064,-500.0,0.00054794,120]
[393987817,1763163045076,-500.0,0.00054794,120]
[393987818,1763163045085,-250.0,0.00054794,120]
[393987819,1763163045094,-250.0,0.00054794,120]
[393987820,1763163045105,-500.0,0.00054794,120]
[393987821,1763163045114,-602.21,0.00054794,120]
[393987822,1763163045123,-770.06,0.00054794,120]
[393987823,1763163045133,-500.0,0.00054794,120]
[393987824,1763163045142,-500.0,0.00054794,60]
[393987825,1763163045151,-250.0,0.00054794,120]
[393987826,1763163045160,-250.0,0.00054794,120]
[393987828,1763163045169,-500.0,0.00054794,120]
[393987829,1763163045177,-500.0,0.00054794,120]
[393987830,1763163045186,-569.07,0.00054794,120]
[393987831,1763163045195,-500.0,0.00054794,120]
[393987832,1763163045204,-500.0,0.00054794,120]
[393987833,1763163045213,-500.0,0.00054794,120]
[393987834,1763163045222,-515.49991857,0.00054794,120]
[393987835,1763163045231,-1011.6,0.00054794,120]
[393987836,1763163045241,-500.0,0.00054794,120]
[393987837,1763163045254,-500.0,0.00054794,120]
[393987839,1763163045263,-500.0,0.00054794,120]
[393987841,1763163045273,-507.27865646,0.00054794,120]
[393987843,1763163045282,-500.0,0.00054794,120]
[393987844,1763163045293,-500.0,0.00054794,120]
[393987845,1763163045302,-500.0,0.00054794,120]
[393987846,1763163045311,-500.0,0.00054794,120]
[393987847,1763163045321,-500.0,0.00054794,120]
[393987848,1763163045330,-512.18633402,0.00054794,120]
[393987849,1763163045340,-503.6,0.00054794,120]
[393987850,1763163045349,-1013.04,0.00054794,120]
[393987851,1763163045357,-618.73378865,0.00054794,120]
[393987852,1763163045366,-500.0,0.00054794,120]
[393987853,1763163045375,-500.0,0.00054794,120]
[393987854,1763163045384,-500.0,0.00054794,120]
[393987855,1763163045393,-500.0,0.00054794,120]
[393987856,1763163045402,-500.0,0.00054794,120]
[393987857,1763163045411,-500.0,0.00054794,120]
[393987858,1763163045425,-500.0,0.00054794,120]
[393987859,1763163045436,-795.75,0.00054794,120]
[393987860,1763163045445,-500.0,0.00054794,120]
[393987861,1763163045454,-744.97,0.00054794,120]
[393987862,1763163045463,-500.0,0.00054794,120]
[393987863,1763163045472,-926.26,0.00054794,120]
[393987864,1763163045481,-500.0,0.00054794,120]
[393987865,1763163045490,-500.0,0.00054794,120]
[393987866,1763163045499,-957.06,0.00054794,120]
[393987867,1763163045508,-500.0,0.00054794,120]
[393987868,1763163045517,-558.33,0.00054794,120]
[393987869,1763163045526,-577.17,0.00054794,120]
[393987870,1763163045535,-1165.08,0.00054794,120]
[393987871,1763163045544,-500.0,0.00054794,120]
[393987872,1763163045553,-1071.96,0.00054794,120]
[393987873,1763163045562,-500.0,0.00054794,120]
[393987874,1763163045574,-589.15849101,0.00054794,120]
[393987875,1763163045583,-757.4,0.00054794,120]
[393987876,1763163045592,-500.0,0.00054794,120]
[393987877,1763163045602,-500.0,0.00054794,120]
[393987878,1763163045611,-500.0,0.00054794,120]
[393987879,1763163045621,-500.0,0.00054794,120]
[393987880,1763163045630,-500.0,0.00054794,120]
[393987881,1763163045640,-500.0,0.00054794,120]
[393987882,1763163045650,-500.0,0.00054794,120]
[393987883,1763163045659,-500.0,0.00054794,21]
[393987884,1763163045670,-500.0,0.00054794,120]
[393987885,1763163045680,-500.0,0.00054794,120]
[393987886,1763163045689,-500.0,0.00054794,120]
[393987887,1763163045698,-537.62,0.00054794,120]
[393987888,1763163045707,-425.39469481,0.00054794,120]
[393987889,1763163045716,-500.0,0.00054794,120]
[393987890,1763163045726,-500.0,0.00054794,120]
[393987891,1763163045735,-500.0,0.00054794,120]
[393987892,1763163045746,-624.22,0.00054794,120]
[393987893,1763163045755,-500.0,0.00054794,120]
[393987894,1763163045765,-1290.89,0.00054794,120]
[393987895,1763163045774,-500.0,0.00054794,120]
[393987896,1763163045785,-500.0,0.00054794,120]
[393987897,1763163045794,-500.0,0.00054794,120]
[393987898,1763163045804,-500.0,0.00054794,120]
[393987899,1763163045814,-500.0,0.00054794,120]
[393987900,1763163045825,-500.0,0.00054794,120]
[393987901,1763163045835,-500.0,0.00054794,120]
[393987902,1763163045844,-500.0,0.00054794,120]
[393987903,1763163045854,-1771.84,0.00054794,120]
[393987904,1763163045863,-4563.86,0.00054794,3]
[393987905,1763163045872,-500.0,0.00054794,120]
[393987906,1763163045881,-500.0,0.00054794,120]
[393987907,1763163045890,-500.0,0.00054794,120]
[393987908,1763163045900,-700.76,0.00054794,120]
[393987909,1763163045909,-500.0,0.00054794,120]
[393987910,1763163045919,-616.51,0.00054794,120]
[393987911,1763163045928,-1233.73,0.00054794,120]
[393987912,1763163045936,-500.0,0.00054794,120]
[393987913,1763163045945,-500.0,0.00054794,120]
[393987914,1763163045954,-500.0,0.00054794,60]
[393987915,1763163045963,-500.0,0.00054794,120]
[393987916,1763163045972,-500.0,0.00054794,120]
[393987917,1763163045981,-500.0,0.00054794,120]
[393987918,1763163045990,-500.0,0.00054794,14]
[393987919,1763163046000,-500.0,0.00054794,120]
[393987920,1763163046009,-500.0,0.00054794,120]
[393987921,1763163046018,-500.0,0.00054794,120]
[393987922,1763163046027,-842.2,0.00054794,120]
[393987923,1763163046036,-500.0,0.00054794,120]
[393987925,1763163046045,-645.24,0.00054794,120]
[393987927,1763163046054,-500.0,0.00054794,120]
[393987929,1763163046063,-500.0,0.00054794,120]
[393987931,1763163046073,-500.0,0.00054794,120]
[393987933,1763163046083,-500.0,0.00054794,120]
[393987935,1763163046092,-587.35152217,0.00054794,7]
[393987937,1763163046101,-500.0,0.00054794,120]
[393987939,1763163046111,-647.48,0.00054794,120]
[393987941,1763163046120,-1594.89,0.00054794,120]
[393987943,1763163046129,-500.0,0.00054794,120]
[393987945,1763163046138,-1269.23,0.00054794,120]
[393987947,1763163046147,-500.0,0.00054794,10]
[393987949,1763163046156,-604.97620965,0.00054794,120]
[393987951,1763163046165,-608.74774686,0.00054794,120]
[393987953,1763163046174,-500.0,0.00054794,3]
[393987955,1763163046183,-500.0,0.00054794,120]
[393987957,1763163046191,-500.0,0.00054794,120]
[393987959,1763163046201,-500.0,0.00054794,120]
[393987961,1763163046210,-500.0,0.00054794,120]
[393987962,1763163046219,-999.0,0.00054794,120]
[393987963,1763163046229,-500.0,0.00054794,120]
[393987964,1763163046239,-500.0,0.00054794,120]
[393987965,1763163046252,-500.0,0.00054794,120]
[393987966,1763163046262,-500.0,0.00054794,120]
[393987967,1763163046272,-500.0,0.00054794,120]
[393987968,1763163046282,-1132.16,0.00054794,120]
[393987969,1763163046293,-500.0,0.00054794,120]
[393987970,1763163046303,-594.39005079,0.00054794,120]
[393987971,1763163046312,-500.0,0.00054794,120]
[393987972,1763163046324,-500.0,0.00054794,120]
[393987973,1763163046333,-1000.0,0.00054794,2]
[393987974,1763163046342,-1096.02,0.00054794,120]
[393987975,1763163046352,-500.0,0.00054794,120]
[393987976,1763163046361,-500.0,0.00054794,120]
[393987977,1763163046370,-500.0,0.00054794,120]
[393987979,1763163046379,-500.0,0.00054794,120]
[393987981,1763163046388,-500.0,0.00054794,120]
[393987982,1763163046397,-500.0,0.00054794,120]
[393987983,1763163046406,-500.0,0.00054794,120]
[393987984,1763163046415,-500.0,0.00054794,120]
[393987985,1763163046424,-1122.16,0.00054794,120]
[393987986,1763163046433,-500.0,0.00054794,120]
[393987987,1763163046442,-1152.31,0.00054794,120]
[393987988,1763163046451,-500.0,0.00054794,120]
[393987989,1763163046460,-500.0,0.00054794,120]
[393987990,1763163046468,-500.0,0.00054794,120]
[393987991,1763163046477,-500.0,0.00054794,120]
[393987992,1763163046486,-500.0,0.00054794,120]
[393987993,1763163046495,-500.0,0.00054794,120]
[393987994,1763163046504,-500.13113445,0.00054794,120]
[393987995,1763163046513,-521.96,0.00054794,120]
[393987996,1763163046522,-500.0,0.00054794,120]
[393987997,1763163046532,-500.0,0.00054794,120]
[393987998,1763163046541,-151.0,0.00054794,2]
[393987999,1763163046550,-500.0,0.00054794,120]
[393988000,1763163046559,-151.0,0.00054794,2]
[393988001,1763163046570,-500.0,0.00054794,120]
[393988002,1763163046579,-500.0,0.00054794,120]
[393988003,1763163046588,-500.0,0.00054794,120]
[393988004,1763163046597,-500.0,0.00054794,120]
[393988005,1763163046607,-500.0,0.00054794,120]
[393988006,1763163046616,-377.50280124,0.00054794,120]
[393988007,1763163046625,-500.0,0.00054794,120]
[393988008,1763163046635,-500.0,0.00054794,120]
[393988009,1763163046643,-504.60595608,0.00054794,120]
[393988010,1763163046653,-500.0,0.00054794,120]
[393988011,1763163046663,-500.0,0.00054794,120]
[393988012,1763163046672,-500.0,0.00054794,120]
[393988013,1763163046681,-500.0,0.00054794,120]
[393988014,1763163046690,-500.0,0.00054794,120]
[393988015,1763163046699,-500.0,0.00054794,120]
[393988016,1763163046710,-500.0,0.00054794,120]
[393988017,1763163046720,-500.0,0.00054794,120]
[393988018,1763163046730,-500.0,0.00054794,120]
[393988019,1763163046739,-500.0,0.00054794,120]
[393988020,1763163046749,-604.71000767,0.00054794,120]
[393988021,1763163046759,-510.42080793,0.00054794,120]
[393988022,1763163046769,-500.0,0.00054794,120]
[393988023,1763163046780,-500.0,0.00054794,120]
[393988024,1763163046790,-500.0,0.00054794,120]
[393988025,1763163046799,-546.89,0.00054794,120]
[393988026,1763163046808,-500.0,0.00054794,120]
[393988027,1763163046821,-1021.88,0.00054794,120]
[393988028,1763163046831,-500.0,0.00054794,120]
[393988029,1763163046840,-1319.76,0.00054794,7]
[393988030,1763163046850,-500.0,0.00054794,120]
[393988031,1763163046861,-500.0,0.00054794,120]
[393988032,1763163046871,-500.0,0.00054794,120]
[393988033,1763163046880,-648.12,0.00054794,120]
[393988034,1763163046890,-592.45,0.00054794,120]
[393988035,1763163046899,-1368.47,0.00054794,120]
[393988036,1763163046909,-500.0,0.00054794,120]
[393988037,1763163046919,-519.73,0.00054794,120]
[393988038,1763163046928,-500.0,0.00054794,120]
[393988039,1763163046938,-500.0,0.00054794,120]
[393988040,1763163046947,-4050.32,0.00054794,120]
[393988041,1763163046956,-500.0,0.00054794,120]
[393988042,1763163046968,-634.19,0.00054794,120]
[393988043,1763163046978,-500.0,0.00054794,120]
[393988044,1763163046988,-503.62,0.00054794,120]
[393988045,1763163046998,-500.0,0.00054794,120]
[393988046,1763163047007,-500.0,0.00054794,120]
[393988047,1763163047018,-500.0,0.00054794,120]
[393988048,1763163047028,-2802.34,0.00054794,120]
[393988049,1763163047037,-500.0,0.00054794,120]
[393988050,1763163047047,-500.0,0.00054794,120]
[393988051,1763163047056,-521.64,0.00054794,120]
[393988052,1763163047069,-500.0,0.00054794,120]
[393988053,1763163047080,-500.0,0.00054794,120]
[393988054,1763163047089,-500.0,0.00054794,120]
[393988055,1763163047098,-500.0,0.00054794,120]
[393988056,1763163047108,-500.0,0.00054794,120]
[393988057,1763163047118,-530.71,0.00054794,120]
[393988058,1763163047127,-500.0,0.00054794,120]
[393988059,1763163047137,-3258.32,0.00054794,2]
[393988060,1763163047145,-500.0,0.00054794,120]
[393988061,1763163047154,-500.0,0.00054794,120]
[393988062,1763163047164,-500.0,0.00054794,120]
[393988063,1763163047174,-500.0,0.00054794,120]
[393988064,1763163047183,-583.3,0.00054794,120]
[393988065,1763163047193,-500.0,0.00054794,120]
[393988066,1763163047202,-500.0,0.00054794,120]
[393988067,1763163047211,-523.30068325,0.00054794,120]
[393988068,1763163047221,-500.0,0.00054794,120]
[393988069,1763163047231,-500.0,0.00054794,120]
[393988070,1763163047393,-822.29,0.00054794,120]
[393988071,1763163047403,-500.0,0.00054794,120]
[393988072,1763163047412,-1124.93,0.00054794,120]
[393988073,1763163047422,-1373.01,0.00054794,120]
[393988074,1763163047431,-500.0,0.00054794,120]
[393988075,1763163047441,-500.0,0.00054794,120]
[393988076,1763163047450,-500.0,0.00054794,120]
[393988077,1763163047459,-658.17,0.00054794,120]
[393988078,1763163047468,-500.0,0.00054794,120]
[393988079,1763163047477,-542.38,0.00054794,120]
[393988080,1763163047487,-500.0,0.00054794,120]
[393988081,1763163047496,-500.0,0.00054794,120]
[393988082,1763163047505,-875.21,0.00054794,120]
[393988083,1763163047514,-500.0,0.00054794,120]
[393988084,1763163047523,-27200.0,0.000549,120]
[393988085,1763163047532,-151.0,0.000549,2]
[393988086,1763163047541,-11082.60489618,0.00054968,2]
[393988087,1763163047551,-1000.0,0.00054999,120]
[393988088,1763163047560,-151.0,0.00054999,120]
[393988089,1763163047570,-165.25786638,0.00054999,120]
[393988090,1763163047579,-151.0,0.00054999,120]
[393988091,1763163047589,-151.99056464,0.00054999,2]
[393988092,1763163047598,-151.0,0.00054999,120]
[393988093,1763163047607,-151.0,0.00054999,120]
[393988094,1763163047617,-247.1134968,0.00054999,120]
[393988095,1763163047626,-151.0,0.00054999,2]
[393988096,1763163047635,-294.60138134,0.00054999,120]
[393988097,1763163047645,-254.77975247,0.00054999,120]
[393988098,1763163047655,-191.24671159,0.00054999,120]
[393988099,1763163047666,-500.0,0.00054999,120]
[393988100,1763163047676,-500.0,0.00054999,120]
[393988101,1763163047686,-500.0,0.00054999,120]
[393988102,1763163047697,-500.0,0.00054999,120]
[393988103,1763163047707,-500.0,0.00054999,120]
[393988104,1763163047717,-500.0,0.00054999,120]
[393988105,1763163047727,-500.0,0.00054999,120]
[393988106,1763163047737,-171.71594749,0.00054999,120]
[393988107,1763163047747,-151.0,0.00054999,120]
[393988108,1763163047756,-230.90105677,0.00054999,120]
[393988109,1763163047766,-151.0,0.00054999,120]
[393988110,1763163047776,-151.0,0.00054999,120]
[393988111,1763163047786,-198.0,0.00054999,120]
[393988112,1763163047795,-151.0,0.00054999,120]
[393988113,1763163047805,-151.0,0.00054999,120]
[393988114,1763163047814,-151.0,0.00054999,120]
[393988115,1763163047825,-448.834657,0.00054999,2]
[393988116,1763163047835,-448.834657,0.00054999,2]
[393988117,1763163047844,-448.834657,0.00054999,2]
[393988118,1763163047853,-448.834657,0.00054999,2]
[393988119,1763163047862,-250.0,0.00054999,120]
[393988120,1763163047872,-250.0,0.00054999,120]
[393988121,1763163047882,-250.0,0.00054999,120]
[393988122,1763163047891,-250.0,0.00054999,120]
[393988123,1763163047901,-153.84054432,0.00054999,120]
[393988124,1763163047910,-151.0,0.00054999,120]
[393988125,1763163047920,-250.0,0.00054999,120]
[393988126,1763163047930,-263.17389436,0.00054999,120]
[393988127,1763163047940,-250.0,0.00054999,120]
[393988128,1763163047950,-156.587,0.00054999,120]
[393988129,1763163047960,-250.0,0.00054999,120]
[393988130,1763163047970,-250.0,0.00054999,120]
[393988131,1763163047981,-162.380719,0.00054999,120]
[393988132,1763163047991,-250.0,0.00054999,120]
[393988133,1763163048000,-250.0,0.00054999,120]
[393988134,1763163048010,-257.63583765,0.00054999,120]
[393988135,1763163048020,-250.0,0.00054999,120]
[393988136,1763163048029,-151.0,0.00054999,120]
[393988137,1763163048039,-349.34326665,0.00054999,120]
[393988138,1763163048048,-250.0,0.00054999,120]
[393988139,1763163048059,-156.587,0.00054999,120]
[393988140,1763163048069,-250.0,0.00054999,120]
[393988141,1763163048078,-151.0,0.00054999,120]
[393988142,1763163048088,-250.0,0.00054999,120]
[393988143,1763163048097,-162.380719,0.00054999,120]
[393988144,1763163048106,-151.0,0.00054999,120]
[393988145,1763163048115,-250.0,0.00054999,120]
[393988146,1763163048124,-168.3888056,0.00054999,120]
[393988147,1763163048133,-151.0,0.00054999,120]
[393988148,1763163048142,-151.0,0.00054999,120]
[393988149,1763163048151,-250.0,0.00054999,120]
[393988150,1763163048160,-311.36452056,0.00054999,120]
[393988151,1763163048170,-151.0,0.00054999,120]
[393988152,1763163048179,-250.0,0.00054999,120]
[393988153,1763163048188,-151.0,0.00054999,120]
[393988154,1763163048197,-250.0,0.00054999,120]
[393988155,1763163048207,-151.0,0.00054999,120]
[393988156,1763163048216,-250.0,0.00054999,120]
[393988157,1763163048225,-151.0,0.00054999,120]
[393988158,1763163048236,-313.81255944,0.00054999,120]
[393988159,1763163048246,-151.0,0.00054999,120]
[393988160,1763163048255,-250.0,0.00054999,120]
[393988161,1763163048264,-151.0,0.00054999,120]
[393988162,1763163048274,-151.0,0.00054999,120]
[393988163,1763163048286,-272.26719855,0.00054999,120]
[393988164,1763163048295,-151.0,0.00054999,120]
[393988165,1763163048305,-151.0,0.00054999,120]
[393988166,1763163048314,-151.0,0.00054999,120]
[393988167,1763163048326,-151.0,0.00054999,120]
[393988168,1763163048336,-151.0,0.00054999,120]
[393988169,1763163048346,-151.0,0.00054999,120]
[393988170,1763163048355,-151.0,0.00054999,120]
[393988171,1763163048365,-153.21309439,0.00054999,120]
[393988172,1763163048376,-151.0,0.00054999,120]
[393988173,1763163048386,-151.0,0.00054999,120]
[393988174,1763163048396,-381.0,0.00054999,120]
[393988175,1763163048406,-204.38205315,0.00054999,120]
[393988176,1763163048416,-2141.34044155,0.00054999,120]
[393988177,1763163048426,-414.0,0.00054999,120]
[393988178,1763163048435,-429.318,0.00054999,120]
[393988179,1763163048445,-151.0,0.00054999,120]
[393988181,1763163048455,-445.202766,0.00054999,120]
[393988183,1763163048464,-151.0,0.00054999,120]
[393988185,1763163048473,-314.43462093,0.00054999,120]
[393988187,1763163048483,-151.0,0.00054999,120]
[393988189,1763163048492,-151.0,0.00054999,120]
[393988190,1763163048501,-251.47694848,0.00054999,120]
[393988191,1763163048511,-124919.03509863,0.00055,120]
[393988192,1763163048771,-500.0,0.00054794,120]
[393988193,1763163048781,-241.803839,0.00055,120]
[393988194,1763163049771,-500.0,0.00054794,120]
[393988195,1763163049780,-500.0,0.00054794,120]
[393988196,1763163049790,-500.0,0.00054794,120]
[393988197,1763163049799,-500.0,0.00054794,120]
[393988198,1763163049808,-959.9999998,0.00055,120]
[393988199,1763163049869,-31167.77851416,0.00055,120]
[393988210,1763163396462,5463.17397528,0.0001998,2]
[393988211,1763163396488,10000.01,0.0001998,2]
[393988212,1763163396512,10000.01,0.0001998,2]
[393988213,1763163396535,10000.01,0.0001998,2]
[393988214,1763163396558,5911.02788902,0.0001998,2]
[393988254,1763163930117,-1563.08238,0.00020132,2]
[393988255,1763163955602,-1250.4584086,0.00020132,2]
[393988256,1763163955633,-292.54864581,0.0002051,2]
[393988257,1763163955665,-2773.6604071,0.00020865,2]
[393988258,1763163955693,-183.54258514,0.000209,2]
[393988259,1763163955857,-1200.0,0.00020963,2]
[393988260,1763163955886,-1200.0,0.00020964,2]
[393988261,1763163955916,-300.0,0.00020964,2]
[393988262,1763163955946,-300.0,0.00020964,2]
[393988263,1763163955977,-300.0,0.00020964,2]
[393988264,1763163958563,-1383.38085618,0.00020965,2]
[393988265,1763163958627,-10000.01,0.00020965,2]